Workbook

Sheet HistoricalVolatilty
A1: Historical Volatility
A2: http://investexcel.net
A3: This spreadsheet calculates historical volatility based on data downloaded from Yahoo
A4: Enter the ticker symbol and the other parameters, and click the button
A6: Stock Ticker | B6: GOOG
A7: Start Date | B7: 2010-01-01
A8: End Date | B8: =NOW() -> 2012-03-18T10:38:43.490
A9: Days in Year | B9: 365
A10: Volaility Window | B10: 30

Sheet Data
A1: Date | B1: Adjusted Close | C1: %Change | D1: Volatility
A2: 2010-01-04 | B2: 626.75
A3: 2010-01-05 | B3: 623.99 | C3: =LN(B3/B2) -> -0.004413394438
A4: 2010-01-06 | B4: 608.26 | C4: -0.02553192046
A5: 2010-01-07 | B5: 594.1 | C5: -0.02355476678
A6: 2010-01-08 | B6: 602.02 | C6: 0.01324301199
A7: 2010-01-11 | B7: 601.11 | C7: -0.001512721275
A8: 2010-01-12 | B8: 590.48 | C8: -0.01784218061
A9: 2010-01-13 | B9: 587.09 | C9: -0.00575763541
A10: 2010-01-14 | B10: 589.85 | C10: 0.004690137236
A11: 2010-01-15 | B11: 580 | C11: -0.01684016375
A12: 2010-01-19 | B12: 587.62 | C12: 0.01305237694
A13: 2010-01-20 | B13: 580.41 | C13: -0.01234573012
A14: 2010-01-21 | B14: 582.98 | C14: 0.004418130086
A15: 2010-01-22 | B15: 550.01 | C15: -0.05821642057
A16: 2010-01-25 | B16: 540 | C16: -0.01836732032
A17: 2010-01-26 | B17: 542.42 | C17: 0.004471469544
A18: 2010-01-27 | B18: 542.1 | C18: -0.0005901228364
A19: 2010-01-28 | B19: 534.29 | C19: -0.01451172355
A20: 2010-01-29 | B20: 529.94 | C20: -0.008174970121
A21: 2010-02-01 | B21: 533.02 | C21: 0.005795154323
A22: 2010-02-02 | B22: 531.12 | C22: -0.003570962503
A23: 2010-02-03 | B23: 540.82 | C23: 0.01809852188
A24: 2010-02-04 | B24: 526.78 | C24: -0.02630350222
A25: 2010-02-05 | B25: 531.29 | C25: 0.008525007446
A26: 2010-02-08 | B26: 533.47 | C26: 0.004094825212
A27: 2010-02-09 | B27: 536.44 | C27: 0.005551883109
A28: 2010-02-10 | B28: 534.45 | C28: -0.003716539123
A29: 2010-02-11 | B29: 536.4 | C29: 0.003641970688
A30: 2010-02-12 | B30: 533.12 | C30: -0.006133611869
A31: 2010-02-16 | B31: 541.3 | C31: 0.01522711426
A32: 2010-02-17 | B32: 538.21 | C32: -0.005724835229 | D32: =STDEV(C3:C32)*SQRT(DaysInYear) -> 0.3003988318
A33: 2010-02-18 | B33: 543.22 | C33: 0.009265575844 | D33: 0.3045396337
A34: 2010-02-19 | B34: 540.76 | C34: -0.004538836922 | D34: 0.2950523228
A35: 2010-02-22 | B35: 542.8 | C35: 0.003765370465 | D35: 0.2874621124
A36: 2010-02-23 | B36: 535.07 | C36: -0.0143433485 | D36: 0.2839135299
A37: 2010-02-24 | B37: 531.47 | C37: -0.006750827296 | D37: 0.2839401639
A38: 2010-02-25 | B38: 526.43 | C38: -0.009528382894 | D38: 0.2803354091
A39: 2010-02-26 | B39: 526.8 | C39: 0.0007026006005 | D39: 0.2806809467
A40: 2010-03-01 | B40: 532.69 | C40: 0.01111867159 | D40: 0.2839507792
A41: 2010-03-02 | B41: 541.06 | C41: 0.01559053697 | D41: 0.2871417765
A42: 2010-03-03 | B42: 545.32 | C42: 0.007842599891 | D42: 0.2841920064
A43: 2010-03-04 | B43: 554.59 | C43: 0.01685632369 | D43: 0.2896475794
A44: 2010-03-05 | B44: 564.21 | C44: 0.01719742062 | D44: 0.2962969135
A45: 2010-03-08 | B45: 562.48 | C45: -0.003070944731 | D45: 0.213289615
A46: 2010-03-09 | B46: 560.19 | C46: -0.004079565992 | D46: 0.2027349225
A47: 2010-03-10 | B47: 576.45 | C47: 0.02861259378 | D47: 0.223977297
A48: 2010-03-11 | B48: 581.14 | C48: 0.008103086001 | D48: 0.2247494333
A49: 2010-03-12 | B49: 579.54 | C49: -0.002757006261 | D49: 0.2172868631
A50: 2010-03-15 | B50: 563.18 | C50: -0.02863539257 | D50: 0.2406512095
A51: 2010-03-16 | B51: 565.2 | C51: 0.003580357961 | D51: 0.2403386198
A52: 2010-03-17 | B52: 565.56 | C52: 0.0006367399133 | D52: 0.239568079
A53: 2010-03-18 | B53: 566.4 | C53: 0.001484151656 | D53: 0.2325036848
A54: 2010-03-19 | B54: 560 | C54: -0.01136375865 | D54: 0.2151795732
A55: 2010-03-22 | B55: 557.5 | C55: -0.004474280395 | D55: 0.2150247414
A56: 2010-03-23 | B56: 549 | C56: -0.01536406182 | D56: 0.2227622415
A57: 2010-03-24 | B57: 557.33 | C57: 0.01505908259 | D57: 0.2276455166
A58: 2010-03-25 | B58: 562.88 | C58: 0.009908937452 | D58: 0.22884444
A59: 2010-03-26 | B59: 562.69 | C59: -0.0003376067269 | D59: 0.2288464319
A60: 2010-03-29 | B60: 562.45 | C60: -0.0004266135834 | D60: 0.2272810547
A61: 2010-03-30 | B61: 566.71 | C61: 0.007545467802 | D61: 0.2231040099
A62: 2010-03-31 | B62: 567.12 | C62: 0.0007232125061 | D62: 0.2215938705
A63: 2010-04-01 | B63: 568.8 | C63: 0.002957956942 | D63: 0.2199855849
A64: 2010-04-05 | B64: 571.01 | C64: 0.003877844148 | D64: 0.2190181467
A65: 2010-04-06 | B65: 568.22 | C65: -0.004898054963 | D65: 0.2201287002
A66: 2010-04-07 | B66: 563.54 | C66: -0.008270351798 | D66: 0.2155909336
A67: 2010-04-08 | B67: 567.49 | C67: =LN(B67/B66) -> 0.006984812179 | D67: 0.2141104102
A68: 2010-04-09 | B68: 566.22 | C68: -0.002240432794 | D68: 0.2105717153
A69: 2010-04-12 | B69: 572.73 | C69: 0.01143170621 | D69: 0.2127787275
A70: 2010-04-13 | B70: 586.77 | C70: 0.02421851874 | D70: 0.2238531894
A71: 2010-04-14 | B71: 589 | C71: 0.003793263434 | D71: 0.2193874441
A72: 2010-04-15 | B72: 595.3 | C72: 0.01063929651 | D72: 0.2204062313
A73: 2010-04-16 | B73: 550.15 | C73: -0.07887451184 | D73: 0.3556726658
A74: 2010-04-19 | B74: 550.1 | C74: -9.088843451e-05 | D74: 0.3500553734
A75: 2010-04-20 | B75: 555.04 | C75: 0.00894010334 | D75: 0.3515974213
A76: 2010-04-21 | B76: 554.3 | C76: -0.001334126796 | D76: 0.3513704455
A77: 2010-04-22 | B77: 547.06 | C77: -0.01314757081 | D77: 0.3379803666
A78: 2010-04-23 | B78: 544.99 | C78: -0.003791039749 | D78: 0.3361600702
A79: 2010-04-26 | B79: 531.64 | C79: -0.02480087732 | D79: 0.3453370749
A80: 2010-04-27 | B80: 529.06 | C80: -0.004864721576 | D80: 0.332744116
A81: 2010-04-28 | B81: 529.19 | C81: 0.0002456886381 | D81: 0.332232641
A82: 2010-04-29 | B82: 532 | C82: 0.005295953727 | D82: 0.3331286418
A83: 2010-04-30 | B83: 525.7 | C83: -0.01191278152 | D83: 0.3346194594
A84: 2010-05-03 | B84: 530.6 | C84: 0.009277733878 | D84: 0.3354713451
A85: 2010-05-04 | B85: 506.37 | C85: -0.04674081433 | D85: 0.3703027535
A86: 2010-05-05 | B86: 509.76 | C86: 0.006672399353 | D86: 0.3691725834
A87: 2010-05-06 | B87: 498.67 | C87: -0.02199547239 | D87: 0.3696506506
A88: 2010-05-07 | B88: 493.14 | C88: -0.01115144495 | D88: 0.3671778707
A89: 2010-05-10 | B89: 521.65 | C89: 0.05620375553 | D89: 0.4236866997
A90: 2010-05-11 | B90: 509.05 | C90: -0.02445062136 | D90: 0.4304228469
A91: 2010-05-12 | B91: 505.39 | C91: -0.007215835103 | D91: 0.4288071816
A92: 2010-05-13 | B92: 510.88 | C92: 0.01080432052 | D92: 0.4315834734
A93: 2010-05-14 | B93: 507.53 | C93: -0.006578906497 | D93: 0.4310742986
A94: 2010-05-17 | B94: 507.97 | C94: 0.0008665682472 | D94: 0.4305269502
A95: 2010-05-18 | B95: 498.37 | C95: -0.01907961767 | D95: 0.4337705052
A96: 2010-05-19 | B96: 494.43 | C96: -0.007937189131 | D96: =STDEV(C67:C96)*SQRT(DaysInYear) -> 0.4337343769
A97: 2010-05-20 | B97: 475.01 | C97: -0.04006972747 | D97: 0.4490268742
A98: 2010-05-21 | B98: 472.05 | C98: -0.006250944266 | D98: 0.4488300238
A99: 2010-05-24 | B99: 477.16 | C99: 0.01076695224 | D99: 0.4485097717
A100: 2010-05-25 | B100: 477.07 | C100: -0.0001886337681 | D100: 0.4356494764
A101: 2010-05-26 | B101: 475.47 | C101: -0.003359442133 | D101: 0.4341517916
A102: 2010-05-27 | B102: 490.46 | C102: 0.03103993773 | D102: 0.4502003002
A103: 2010-05-28 | B103: 485.63 | C103: -0.009896709162 | D103: 0.3671892764
A104: 2010-06-01 | B104: 482.37 | C104: -0.006735562655 | D104: 0.3669943411
A105: 2010-06-02 | B105: 493.37 | C105: 0.02254794523 | D105: 0.3761653319
A106: 2010-06-03 | B106: 505.6 | C106: 0.02448644318 | D106: 0.3889685624
A107: 2010-06-04 | B107: 498.72 | C107: -0.01370102681 | D107: 0.3891538683
A108: 2010-06-07 | B108: 485.52 | C108: -0.02682433449 | D108: 0.3978763802
A109: 2010-06-08 | B109: 484.78 | C109: -0.001525301749 | D109: 0.390669531
A110: 2010-06-09 | B110: 474.02 | C110: -0.02244566488 | D110: 0.3964530319
A111: 2010-06-10 | B111: 487.01 | C111: 0.02703514185 | D111: 0.4105383227
A112: 2010-06-11 | B112: 488.5 | C112: 0.00305481473 | D112: 0.4100583544
A113: 2010-06-14 | B113: 483.19 | C113: -0.01092952044 | D113: 0.409798904
A114: 2010-06-15 | B114: 497.99 | C114: 0.03017004546 | D114: 0.4237961502
A115: 2010-06-16 | B115: 501.27 | C115: 0.006564881572 | D115: 0.3928019481
A116: 2010-06-17 | B116: 500.08 | C116: -0.002376792451 | D116: 0.3920368669
A117: 2010-06-18 | B117: 500.03 | C117: -9.998900129e-05 | D117: 0.3843890079
A118: 2010-06-21 | B118: 488.56 | C118: -0.02320580771 | D118: 0.3910679382
A119: 2010-06-22 | B119: 486.25 | C119: -0.004739393982 | D119: 0.3338014469
A120: 2010-06-23 | B120: 482.05 | C120: -0.008675051822 | D120: 0.3250722319
A121: 2010-06-24 | B121: 475.1 | C121: -0.01452253492 | D121: 0.3275890297
A122: 2010-06-25 | B122: 472.68 | C122: -0.005106681422 | D122: 0.3244105753
A123: 2010-06-28 | B123: 472.08 | C123: -0.001270164022 | D123: 0.3241174635
A124: 2010-06-29 | B124: 454.26 | C124: -0.03847874141 | D124: 0.3473299129
A125: 2010-06-30 | B125: 444.95 | C125: -0.02070780504 | D125: 0.3482809696
A126: 2010-07-01 | B126: 439.49 | C126: -0.01234695257 | D126: 0.3492817831
A127: 2010-07-02 | B127: 436.55 | C127: -0.006712047481 | D127: 0.3243249731
A128: 2010-07-06 | B128: 436.07 | C128: -0.001100135336 | D128: 0.3241356315
A129: 2010-07-07 | B129: 450.2 | C129: 0.03188914755 | D129: 0.3429605198
A130: 2010-07-08 | B130: 456.56 | C130: 0.01402819776 | D130: 0.3474295772
A131: 2010-07-09 | B131: 467.49 | C131: =LN(B131/B130) -> 0.0236578319 | D131: 0.3581893581
A132: 2010-07-12 | B132: 475.83 | C132: 0.01768268946 | D132: 0.3461848579
A133: 2010-07-13 | B133: 489.2 | C133: 0.02771075623 | D133: 0.3586616965
A134: 2010-07-14 | B134: 491.34 | C134: 0.004364948697 | D134: 0.3580322456
A135: 2010-07-15 | B135: 494.02 | C135: 0.005439649688 | D135: 0.3497173969
A136: 2010-07-16 | B136: 459.61 | C136: -0.07219769841 | D136: 0.4201743302
A137: 2010-07-19 | B137: 466.18 | C137: 0.01419352185 | D137: 0.4226406041
A138: 2010-07-20 | B138: 481.59 | C138: 0.03252130402 | D138: 0.429840253
A139: 2010-07-21 | B139: 477.5 | C139: -0.008528969739 | D139: 0.4307906483
A140: 2010-07-22 | B140: 484.81 | C140: 0.01519290168 | D140: 0.4266477148
A141: 2010-07-23 | B141: 490.06 | C141: 0.01077077098 | D141: 0.4177144116
A142: 2010-07-26 | B142: 488.97 | C142: -0.002226694688 | D142: 0.4176676258
A143: 2010-07-27 | B143: 492.63 | C143: 0.007457247272 | D143: 0.416516532
A144: 2010-07-28 | B144: 484.35 | C144: -0.0169505993 | D144: 0.4067916327
A145: 2010-07-29 | B145: 484.99 | C145: 0.001320486296 | D145: 0.4059866906
A146: 2010-07-30 | B146: 484.85 | C146: -0.0002887074177 | D146: 0.4059694064
A147: 2010-08-02 | B147: 490.41 | C147: 0.01140221118 | D147: 0.4082773142
A148: 2010-08-03 | B148: 489.83 | C148: -0.001183383799 | D148: 0.4001071083
A149: 2010-08-04 | B149: 506.32 | C149: 0.03311048834 | D149: 0.415833878
A150: 2010-08-05 | B150: 508.1 | C150: 0.003509398133 | D150: 0.4143064516
A151: 2010-08-06 | B151: 500.22 | C151: -0.01563027695 | D151: 0.4148718342
A152: 2010-08-09 | B152: 505.35 | C152: 0.01020325687 | D152: 0.415139141
A153: 2010-08-10 | B153: 503.71 | C153: -0.003250552879 | D153: 0.4154065462
A154: 2010-08-11 | B154: 491.74 | C154: -0.02405058412 | D154: 0.4004186245
A155: 2010-08-12 | B155: 492.01 | C155: 0.000548919963 | D155: 0.3915841082
A156: 2010-08-13 | B156: 486.35 | C156: -0.01157051217 | D156: 0.3912015201
A157: 2010-08-16 | B157: 485.59 | C157: -0.001563882863 | D157: 0.3899405304
A158: 2010-08-17 | B158: 490.52 | C158: 0.01010140644 | D158: 0.390217101
A159: 2010-08-18 | B159: 482.15 | C159: -0.01721078394 | D159: 0.3834508818
A160: 2010-08-19 | B160: 467.97 | C160: -0.02985107766 | D160: =STDEV(C131:C160)*SQRT(DaysInYear) -> 0.3968497714
A161: 2010-08-20 | B161: 462.02 | C161: -0.01279601111 | D161: 0.3907731789
A162: 2010-08-23 | B162: 464.07 | C162: 0.004427222729 | D162: 0.38575941
A163: 2010-08-24 | B163: 451.39 | C163: -0.02770369208 | D163: 0.3825617393
A164: 2010-08-25 | B164: 454.62 | C164: 0.007130194334 | D164: 0.3833236153
A165: 2010-08-26 | B165: 450.98 | C165: -0.00803891255 | D165: 0.382652921
A166: 2010-08-27 | B166: 458.83 | C166: 0.01725677846 | D166: 0.2967328438
A167: 2010-08-30 | B167: 452.69 | C167: -0.01347220657 | D167: 0.295700307
A168: 2010-08-31 | B168: 450.02 | C168: -0.005915538293 | D168: 0.2701862749
A169: 2010-09-01 | B169: 460.33 | C169: 0.02265159736 | D169: 0.282681748
A170: 2010-09-02 | B170: 463.18 | C170: 0.006172123848 | D170: 0.2777983355
A171: 2010-09-03 | B171: 470.3 | C171: 0.01525504152 | D171: 0.280720693
A172: 2010-09-07 | B172: 464.4 | C172: -0.01262453913 | D172: 0.2834488336
A173: 2010-09-08 | B173: 470.58 | C173: 0.01321972663 | D173: 0.2864930049
A174: 2010-09-09 | B174: 476.18 | C174: 0.01182995756 | D174: 0.284572815
A175: 2010-09-10 | B175: 476.14 | C175: -8.400537639e-05 | D175: 0.2844977219
A176: 2010-09-13 | B176: 482.27 | C176: 0.01279219456 | D176: 0.2883190308
A177: 2010-09-14 | B177: 480.43 | C177: -0.003822586975 | D177: 0.2854996162
A178: 2010-09-15 | B178: 480.64 | C178: 0.0004370129196 | D178: 0.2855199851
A179: 2010-09-16 | B179: 481.06 | C179: 0.0008734533154 | D179: 0.2584272427
A180: 2010-09-17 | B180: 490.15 | C180: 0.01871946426 | D180: 0.2675745722
A181: 2010-09-20 | B181: 508.28 | C181: 0.03632101013 | D181: 0.2925076447
A182: 2010-09-21 | B182: 513.46 | C182: 0.01013965271 | D182: 0.2924812616
A183: 2010-09-22 | B183: 516 | C183: 0.004934635934 | D183: 0.2925428692
A184: 2010-09-23 | B184: 513.48 | C184: -0.004895685265 | D184: 0.2793946452
A185: 2010-09-24 | B185: 527.29 | C185: 0.0265396016 | D185: 0.2927384894
A186: 2010-09-27 | B186: 530.41 | C186: 0.005899610569 | D186: 0.2886272617
A187: 2010-09-28 | B187: 527.17 | C187: -0.006127215221 | D187: 0.2899495752
A188: 2010-09-29 | B188: 527.69 | C188: 0.0009859129024 | D188: 0.2887771681
A189: 2010-09-30 | B189: 525.79 | C189: -0.003607096594 | D189: 0.2809207086
A190: 2010-10-01 | B190: 525.62 | C190: -0.0003233752798 | D190: 0.2553229317
A191: 2010-10-04 | B191: 522.35 | C191: -0.006240656913 | D191: 0.2509224942
A192: 2010-10-05 | B192: 538.23 | C192: 0.02994811682 | D192: 0.2666504211
A193: 2010-10-06 | B193: 534.35 | C193: -0.007234923128 | D193: 0.2436789801
A194: 2010-10-07 | B194: 530.01 | C194: -0.008155180678 | D194: 0.2482791807
A195: 2010-10-08 | B195: 536.35 | C195: =LN(B195/B194) -> 0.01189105875 | D195: 0.2446964208
A196: 2010-10-11 | B196: 538.84 | C196: 0.004631747787 | D196: 0.2411801599
A197: 2010-10-12 | B197: 541.39 | C197: 0.004721225548 | D197: 0.2314548466
A198: 2010-10-13 | B198: 543.3 | C198: 0.00352174718 | D198: 0.227668061
A199: 2010-10-14 | B199: 540.93 | C199: -0.004371773101 | D199: 0.2226662217
A200: 2010-10-15 | B200: 601.45 | C200: 0.106053526 | D200: 0.4158781098
... 357 more rows
